[Event "Titled Tuesday Blitz April 18 Early 2023"]
[White "Lewtak, Damian"]
[Black "ibove"]
[WhiteFideId "1141724"]
[WhiteElo "2302"]
[BlackElo "2323"]
[Result "1-0"]
[Round "01"]
[TimeControl "180+2"]
[Date "2023.04.18"]
[WhiteClock "0:00:54"]
[BlackClock "0:00:37"]

1. e4 {[%clk 0:02:55]}  c5 {[%clk 0:02:58]} 2. Nf3 {[%clk 0:02:55]}  d6 {[%clk 0:02:58]} 3. Bb5+ {[%clk 0:02:55]}  Nd7 {[%clk 0:02:52]} 4. O-O {[%clk 0:02:54]}  a6 {[%clk 0:02:52]} 5. Bd3 {[%clk 0:02:55]}  b5 {[%clk 0:02:51]} 6. c4 {[%clk 0:02:55]}  bxc4 {[%clk 0:02:42]} 7. Bxc4 {[%clk 0:02:56]}  Ngf6 {[%clk 0:02:40]} 8. Nc3 {[%clk 0:02:56]}  g6 {[%clk 0:02:41]} 9. d4 {[%clk 0:02:56]}  cxd4 {[%clk 0:02:40]} 10. Nxd4 {[%clk 0:02:56]}  Bb7 {[%clk 0:02:37]} 11. Qb3 {[%clk 0:02:51]}  Nc5 {[%clk 0:02:23]} 12. Bxf7+ {[%clk 0:02:50]}  Kd7 {[%clk 0:02:19]} 13. Be6+ {[%clk 0:02:34]}  Ke8 {[%clk 0:01:59]} 14. Qd1 {[%clk 0:02:27]}  Nxe6 {[%clk 0:01:46]} 15. Nxe6 {[%clk 0:02:24]}  Qd7 {[%clk 0:01:46]} 16. Nxf8 {[%clk 0:02:21]}  Kxf8 {[%clk 0:01:47]} 17. Bh6+ {[%clk 0:02:14]}  Kf7 {[%clk 0:01:47]} 18. Re1 {[%clk 0:02:10]}  Ng4 {[%clk 0:01:29]} 19. e5 {[%clk 0:01:48]}  Qf5 {[%clk 0:01:29]} 20. Qb3+ {[%clk 0:01:35]}  d5 {[%clk 0:01:21]} 21. Qxb7 {[%clk 0:01:22]}  Nxh6 {[%clk 0:01:09]} 22. Qxd5+ {[%clk 0:01:22]}  Kg7 {[%clk 0:01:07]} 23. e6 {[%clk 0:01:15]}  Rab8 {[%clk 0:00:55]} 24. b3 {[%clk 0:01:05]}  Rhc8 {[%clk 0:00:52]} 25. Qd4+ {[%clk 0:01:01]}  Qf6 {[%clk 0:00:48]} 26. Qxf6+ {[%clk 0:01:01]}  Kxf6 {[%clk 0:00:49]} 27. Nd5+ {[%clk 0:01:00]}  Kg7 {[%clk 0:00:44]} 28. Nxe7 {[%clk 0:01:00]}  Rc2 {[%clk 0:00:45]} 29. Nd5 {[%clk 0:00:57]}  Rd2 {[%clk 0:00:36]} 30. e7 {[%clk 0:00:55]}  Kf7 {[%clk 0:00:37]} 31. Nc7 {[%clk 0:00:54]} 1-0


[Site "https://www.chess.com"]

[Event "Titled Tuesday Blitz April 18 Early 2023"]
[White "Poliakova, Varvara"]
[Black "Ardila, Oscar Humberto"]
[WhiteFideId "13518313"]
[BlackFideId "4404742"]
[WhiteElo "2075"]
[BlackElo "1918"]
[Result "1-0"]
[Round "01"]
[TimeControl "180+2"]
[Date "2023.04.18"]
[WhiteClock "0:01:36"]
[BlackClock "0:00:20"]

1. e4 {[%clk 0:02:59]}  e5 {[%clk 0:02:46]} 2. Nf3 {[%clk 0:02:59]}  Nf6 {[%clk 0:02:41]} 3. Nc3 {[%clk 0:02:57]}  Nc6 {[%clk 0:02:40]} 4. d4 {[%clk 0:02:57]}  Bb4 {[%clk 0:02:40]} 5. d5 {[%clk 0:02:53]}  Nd4 {[%clk 0:02:39]} 6. Nxd4 {[%clk 0:02:51]}  Bxc3+ {[%clk 0:02:35]} 7. bxc3 {[%clk 0:02:50]}  exd4 {[%clk 0:02:36]} 8. Qxd4 {[%clk 0:02:50]}  O-O {[%clk 0:02:33]} 9. Bd3 {[%clk 0:02:48]}  d6 {[%clk 0:02:33]} 10. Bg5 {[%clk 0:02:48]}  h6 {[%clk 0:02:33]} 11. Bh4 {[%clk 0:02:48]}  g5 {[%clk 0:02:33]} 12. Bg3 {[%clk 0:02:48]}  Re8 {[%clk 0:02:31]} 13. O-O {[%clk 0:02:48]}  Qe7 {[%clk 0:02:29]} 14. Rae1 {[%clk 0:02:48]}  Ng4 {[%clk 0:02:29]} 15. f4 {[%clk 0:02:45]}  c5 {[%clk 0:02:17]} 16. dxc6 {[%clk 0:02:41]}  bxc6 {[%clk 0:02:17]} 17. e5 {[%clk 0:02:33]}  dxe5 {[%clk 0:01:53]} 18. fxe5 {[%clk 0:02:34]}  h5 {[%clk 0:01:32]} 19. Qe4 {[%clk 0:02:33]}  f5 {[%clk 0:01:22]} 20. exf6 {[%clk 0:02:33]}  Qxe4 {[%clk 0:01:22]} 21. Rxe4 {[%clk 0:02:33]}  Rxe4 {[%clk 0:01:11]} 22. Bxe4 {[%clk 0:02:34]}  Be6 {[%clk 0:01:08]} 23. h3 {[%clk 0:02:31]}  Ne3 {[%clk 0:01:04]} 24. Rb1 {[%clk 0:02:31]}  Nd5 {[%clk 0:01:00]} 25. Be5 {[%clk 0:02:28]}  Re8 {[%clk 0:00:50]} 26. Rb7 {[%clk 0:02:26]}  Bf7 {[%clk 0:00:49]} 27. Bg6 {[%clk 0:01:49]}  Rxe5 {[%clk 0:00:32]} 28. Bxf7+ {[%clk 0:01:44]}  Kf8 {[%clk 0:00:32]} 29. Bg6 {[%clk 0:01:41]}  Nxf6 {[%clk 0:00:20]} 30. Rf7+ {[%clk 0:01:40]}  Kg8 {[%clk 0:00:21]} 31. Rxf6 {[%clk 0:01:41]}  Kg7 {[%clk 0:00:21]} 32. Rxc6 {[%clk 0:01:41]}  Re2 {[%clk 0:00:21]} 33. Bd3 {[%clk 0:01:41]}  Rd2 {[%clk 0:00:21]} 34. Rc7+ {[%clk 0:01:41]}  Kf6 {[%clk 0:00:20]} 35. Rxa7 {[%clk 0:01:42]}  h4 {[%clk 0:00:20]} 36. Kf1 {[%clk 0:01:41]}  Ke5 {[%clk 0:00:20]} 37. Ra5+ {[%clk 0:01:39]}  Kf4 {[%clk 0:00:20]} 38. Rf5+ {[%clk 0:01:39]}  Ke3 {[%clk 0:00:20]} 39. Rf3# {[%clk 0:01:36]} 1-0


[Site "https://www.chess.com"]

[Event "Titled Tuesday Blitz April 18 Early 2023"]
[White "Havanecz, Bianka"]
[Black "Harshad S"]
[WhiteFideId "704814"]
[BlackFideId "46616551"]
[WhiteElo "2315"]
[BlackElo "2163"]
[Result "1/2-1/2"]
[Round "01"]
[TimeControl "180+2"]
[Date "2023.04.18"]
[WhiteClock "0:00:38"]
[BlackClock "0:00:09"]

1. d4 {[%clk 0:03:00]}  Nf6 {[%clk 0:02:45]} 2. c4 {[%clk 0:03:01]}  e6 {[%clk 0:02:43]} 3. Nc3 {[%clk 0:03:01]}  Bb4 {[%clk 0:02:41]} 4. Qc2 {[%clk 0:03:01]}  O-O {[%clk 0:02:35]} 5. Nf3 {[%clk 0:03:01]}  d5 {[%clk 0:02:33]} 6. cxd5 {[%clk 0:03:01]}  exd5 {[%clk 0:02:32]} 7. Bf4 {[%clk 0:03:01]}  c5 {[%clk 0:02:29]} 8. dxc5 {[%clk 0:03:01]}  Nc6 {[%clk 0:02:23]} 9. e3 {[%clk 0:03:01]}  Qa5 {[%clk 0:02:08]} 10. Bd3 {[%clk 0:02:49]}  Bxc5 {[%clk 0:02:03]} 11. O-O {[%clk 0:02:44]}  Nb4 {[%clk 0:02:01]} 12. Qb1 {[%clk 0:02:41]}  Nxd3 {[%clk 0:02:00]} 13. Qxd3 {[%clk 0:02:41]}  Be6 {[%clk 0:02:01]} 14. a3 {[%clk 0:02:40]}  Be7 {[%clk 0:01:46]} 15. Nd4 {[%clk 0:02:31]}  Rac8 {[%clk 0:01:40]} 16. Nxe6 {[%clk 0:02:26]}  fxe6 {[%clk 0:01:40]} 17. b4 {[%clk 0:02:25]}  Qd8 {[%clk 0:01:30]} 18. Nb5 {[%clk 0:02:19]}  a6 {[%clk 0:01:23]} 19. Nd4 {[%clk 0:02:18]}  Qd7 {[%clk 0:01:24]} 20. Rac1 {[%clk 0:02:16]}  Bd6 {[%clk 0:01:16]} 21. Bxd6 {[%clk 0:02:12]}  Qxd6 {[%clk 0:01:17]} 22. h3 {[%clk 0:02:11]}  e5 {[%clk 0:01:10]} 23. Nb3 {[%clk 0:02:08]}  Ne4 {[%clk 0:01:00]} 24. f3 {[%clk 0:01:52]}  Nf6 {[%clk 0:00:56]} 25. Rfd1 {[%clk 0:01:50]}  Qe7 {[%clk 0:00:52]} 26. Nc5 {[%clk 0:01:44]}  Kh8 {[%clk 0:00:46]} 27. Nb3 {[%clk 0:01:31]}  e4 {[%clk 0:00:39]} 28. fxe4 {[%clk 0:01:29]}  dxe4 {[%clk 0:00:40]} 29. Qd4 {[%clk 0:01:23]}  Rcd8 {[%clk 0:00:33]} 30. Qc5 {[%clk 0:01:19]}  Qf7 {[%clk 0:00:33]} 31. Rxd8 {[%clk 0:01:17]}  Rxd8 {[%clk 0:00:32]} 32. Nd4 {[%clk 0:01:17]}  h6 {[%clk 0:00:27]} 33. Qc7 {[%clk 0:01:15]}  Rd7 {[%clk 0:00:27]} 34. Qb8+ {[%clk 0:01:13]}  Kh7 {[%clk 0:00:27]} 35. Qf4 {[%clk 0:01:13]}  Qa2 {[%clk 0:00:26]} 36. Qf5+ {[%clk 0:01:10]}  Kg8 {[%clk 0:00:26]} 37. Rc8+ {[%clk 0:01:10]}  Kf7 {[%clk 0:00:27]} 38. Kh2 {[%clk 0:01:08]}  Qd5 {[%clk 0:00:23]} 39. Qxd5+ {[%clk 0:01:07]}  Nxd5 {[%clk 0:00:24]} 40. Rc5 {[%clk 0:01:02]}  Nxe3 {[%clk 0:00:21]} 41. Ne2 {[%clk 0:01:03]}  Nd5 {[%clk 0:00:20]} 42. Rc4 {[%clk 0:01:02]}  Nf6 {[%clk 0:00:20]} 43. Kg3 {[%clk 0:00:59]}  g5 {[%clk 0:00:21]} 44. Kf2 {[%clk 0:00:59]}  Rd3 {[%clk 0:00:20]} 45. Rc7+ {[%clk 0:00:59]}  Kg6 {[%clk 0:00:21]} 46. Rxb7 {[%clk 0:00:59]}  Rxa3 {[%clk 0:00:21]} 47. Rb6 {[%clk 0:01:00]}  Kf5 {[%clk 0:00:21]} 48. Ng3+ {[%clk 0:00:59]}  Ke5 {[%clk 0:00:21]} 49. b5 {[%clk 0:00:57]}  Nd5 {[%clk 0:00:20]} 50. Rb8 {[%clk 0:00:55]}  axb5 {[%clk 0:00:17]} 51. Rxb5 {[%clk 0:00:55]}  Ra2+ {[%clk 0:00:18]} 52. Kg1 {[%clk 0:00:54]}  Ra3 {[%clk 0:00:17]} 53. Nf1 {[%clk 0:00:53]}  Rd3 {[%clk 0:00:17]} 54. Rb8 {[%clk 0:00:51]}  e3 {[%clk 0:00:17]} 55. Re8+ {[%clk 0:00:51]}  Kd4 {[%clk 0:00:18]} 56. Re6 {[%clk 0:00:49]}  Nf4 {[%clk 0:00:17]} 57. Rd6+ {[%clk 0:00:46]}  Kc3 {[%clk 0:00:18]} 58. Rc6+ {[%clk 0:00:45]}  Kb2 {[%clk 0:00:18]} 59. Nxe3 {[%clk 0:00:44]}  Rxe3 {[%clk 0:00:18]} 60. Rxh6 {[%clk 0:00:45]}  Rg3 {[%clk 0:00:19]} 61. h4 {[%clk 0:00:43]}  Rxg2+ {[%clk 0:00:17]} 62. Kf1 {[%clk 0:00:44]}  Rg4 {[%clk 0:00:04]} 63. hxg5 {[%clk 0:00:41]}  Rxg5 {[%clk 0:00:05]} 64. Rf6 {[%clk 0:00:41]}  Nd3 {[%clk 0:00:05]} 65. Rb6+ {[%clk 0:00:40]}  Kc3 {[%clk 0:00:06]} 66. Ke2 {[%clk 0:00:39]}  Re5+ {[%clk 0:00:05]} 67. Kf3 {[%clk 0:00:39]}  Rf5+ {[%clk 0:00:05]} 68. Kg4 {[%clk 0:00:38]}  Rf4+ {[%clk 0:00:06]} 69. Kg5 {[%clk 0:00:37]}  Kd2 {[%clk 0:00:06]} 70. Rd6 {[%clk 0:00:37]}  Rf1 {[%clk 0:00:06]} 71. Rd8 {[%clk 0:00:37]}  Ke3 {[%clk 0:00:07]} 72. Kg4 {[%clk 0:00:37]}  Rg1+ {[%clk 0:00:07]} 73. Kf5 {[%clk 0:00:38]}  Nf2 {[%clk 0:00:03]} 74. Re8+ {[%clk 0:00:37]}  Kf3 {[%clk 0:00:03]} 75. Rf8 {[%clk 0:00:37]}  Ra1 {[%clk 0:00:04]} 76. Ke6+ {[%clk 0:00:37]}  Ke2 {[%clk 0:00:05]} 77. Kd5 {[%clk 0:00:38]}  Nd3 {[%clk 0:00:05]} 78. Kd4 {[%clk 0:00:38]}  Kd2 {[%clk 0:00:06]} 79. Kd5 {[%clk 0:00:38]}  Ra4 {[%clk 0:00:07]} 80. Rh8 {[%clk 0:00:36]}  Kc3 {[%clk 0:00:07]} 81. Rh3 {[%clk 0:00:36]}  Ra5+ {[%clk 0:00:08]} 82. Kc6 {[%clk 0:00:36]}  Kc4 {[%clk 0:00:08]} 83. Rh4+ {[%clk 0:00:37]}  Kc3 {[%clk 0:00:08]} 84. Rh3 {[%clk 0:00:37]}  Kd4 {[%clk 0:00:08]} 85. Rh4+ {[%clk 0:00:38]}  Kc3 {[%clk 0:00:09]} 86. Rh3 {[%clk 0:00:38]} 1/2-1/2


[Site "https://www.chess.com"]

[Event "Titled Tuesday Blitz April 18 Early 2023"]
[White "Novikova, Galina"]
[Black "Hua, Lefong"]
[WhiteFideId "4157095"]
[BlackFideId "2602253"]
[WhiteElo "1953"]
[BlackElo "2624"]
[Result "0-1"]
[Round "01"]
[TimeControl "180+2"]
[Date "2023.04.18"]
[WhiteClock "0:00:08"]
[BlackClock "0:00:38"]

1. e4 {[%clk 0:02:59]}  c5 {[%clk 0:03:00]} 2. Nf3 {[%clk 0:02:58]}  g6 {[%clk 0:02:59]} 3. d4 {[%clk 0:02:58]}  cxd4 {[%clk 0:03:00]} 4. Nxd4 {[%clk 0:02:58]}  Bg7 {[%clk 0:03:01]} 5. Nc3 {[%clk 0:02:59]}  Nc6 {[%clk 0:03:01]} 6. Be3 {[%clk 0:02:58]}  Nf6 {[%clk 0:03:02]} 7. Nxc6 {[%clk 0:02:59]}  bxc6 {[%clk 0:03:01]} 8. e5 {[%clk 0:02:59]}  Nd5 {[%clk 0:03:02]} 9. Nxd5 {[%clk 0:02:59]}  cxd5 {[%clk 0:03:03]} 10. Qxd5 {[%clk 0:03:00]}  Rb8 {[%clk 0:03:03]} 11. O-O-O {[%clk 0:02:59]}  O-O {[%clk 0:02:58]} 12. f4 {[%clk 0:02:58]}  d6 {[%clk 0:02:40]} 13. Bc4 {[%clk 0:02:57]}  Bb7 {[%clk 0:02:34]} 14. Qd2 {[%clk 0:02:38]}  dxe5 {[%clk 0:02:28]} 15. Qxd8 {[%clk 0:02:33]}  Rbxd8 {[%clk 0:02:26]} 16. fxe5 {[%clk 0:02:32]}  Bxg2 {[%clk 0:02:21]} 17. Rhg1 {[%clk 0:02:32]}  Bc6 {[%clk 0:02:09]} 18. Bxa7 {[%clk 0:02:27]}  Bxe5 {[%clk 0:02:07]} 19. h4 {[%clk 0:02:07]}  Kg7 {[%clk 0:01:57]} 20. Bc5 {[%clk 0:01:49]}  Bf6 {[%clk 0:01:44]} 21. h5 {[%clk 0:01:22]}  Rxd1+ {[%clk 0:01:25]} 22. Rxd1 {[%clk 0:01:23]}  g5 {[%clk 0:01:20]} 23. b4 {[%clk 0:01:19]}  Bf3 {[%clk 0:01:17]} 24. Re1 {[%clk 0:01:14]}  Rc8 {[%clk 0:01:06]} 25. Be2 {[%clk 0:00:52]}  Bc3 {[%clk 0:01:00]} 26. Bxf3 {[%clk 0:00:42]}  Bxe1 {[%clk 0:00:59]} 27. Bd4+ {[%clk 0:00:39]}  f6 {[%clk 0:00:59]} 28. b5 {[%clk 0:00:40]}  e5 {[%clk 0:00:56]} 29. Ba7 {[%clk 0:00:40]}  Rc3 {[%clk 0:00:50]} 30. Be4 {[%clk 0:00:17]}  g4 {[%clk 0:00:50]} 31. Kb2 {[%clk 0:00:12]}  Rh3 {[%clk 0:00:46]} 32. a4 {[%clk 0:00:09]}  g3 {[%clk 0:00:40]} 33. Bc5 {[%clk 0:00:08]}  Bf2 {[%clk 0:00:38]} 34. Bxf2 {[%clk 0:00:07]}  gxf2 {[%clk 0:00:39]} 35. Bd3 {[%clk 0:00:07]}  Rxd3 {[%clk 0:00:38]} 36. cxd3 {[%clk 0:00:07]}  f1=Q {[%clk 0:00:39]} 37. Kc3 {[%clk 0:00:07]}  Qe1+ {[%clk 0:00:38]} 38. Kc4 {[%clk 0:00:08]}  Qa5 {[%clk 0:00:38]} 0-1


[Site "https://www.chess.com"]

[Event "Titled Tuesday Blitz April 18 Early 2023"]
[White "Itkis, Boris"]
[Black "Sadykov, Ramil"]
[WhiteFideId "1209167"]
[BlackFideId "24113590"]
[WhiteElo "2216"]
[BlackElo "2245"]
[Result "0-1"]
[Round "01"]
[TimeControl "180+2"]
[Date "2023.04.18"]
[WhiteClock "0:00:07"]
[BlackClock "0:00:16"]

1. c4 {[%clk 0:02:58]}  e6 {[%clk 0:02:59]} 2. Nf3 {[%clk 0:02:57]}  Nf6 {[%clk 0:02:59]} 3. g3 {[%clk 0:02:57]}  d5 {[%clk 0:02:54]} 4. b3 {[%clk 0:02:57]}  d4 {[%clk 0:02:45]} 5. Bg2 {[%clk 0:02:55]}  Nc6 {[%clk 0:02:43]} 6. O-O {[%clk 0:02:54]}  Bc5 {[%clk 0:02:35]} 7. d3 {[%clk 0:02:54]}  O-O {[%clk 0:02:32]} 8. Na3 {[%clk 0:02:54]}  h6 {[%clk 0:02:29]} 9. Nc2 {[%clk 0:02:54]}  e5 {[%clk 0:02:27]} 10. a3 {[%clk 0:02:53]}  a5 {[%clk 0:02:27]} 11. Rb1 {[%clk 0:02:53]}  Qd6 {[%clk 0:02:23]} 12. Qe1 {[%clk 0:02:13]}  Ba7 {[%clk 0:02:10]} 13. b4 {[%clk 0:02:12]}  Re8 {[%clk 0:02:00]} 14. Nd2 {[%clk 0:02:09]}  Bf5 {[%clk 0:01:51]} 15. f3 {[%clk 0:01:28]}  Nd8 {[%clk 0:01:38]} 16. Ne4 {[%clk 0:01:26]}  Nxe4 {[%clk 0:01:24]} 17. fxe4 {[%clk 0:01:26]}  Bd7 {[%clk 0:01:15]} 18. Qf2 {[%clk 0:01:17]}  Rf8 {[%clk 0:01:10]} 19. Ne1 {[%clk 0:01:15]}  c6 {[%clk 0:00:54]} 20. c5 {[%clk 0:01:02]}  Qe7 {[%clk 0:00:52]} 21. Nf3 {[%clk 0:00:50]}  f5 {[%clk 0:00:49]} 22. Nh4 {[%clk 0:00:42]}  fxe4 {[%clk 0:00:48]} 23. Qxf8+ {[%clk 0:00:40]}  Qxf8 {[%clk 0:00:48]} 24. Rxf8+ {[%clk 0:00:41]}  Kxf8 {[%clk 0:00:49]} 25. Bxe4 {[%clk 0:00:41]}  axb4 {[%clk 0:00:46]} 26. axb4 {[%clk 0:00:42]}  Bb8 {[%clk 0:00:45]} 27. e3 {[%clk 0:00:37]}  Ne6 {[%clk 0:00:41]} 28. Bf5 {[%clk 0:00:31]}  Ke7 {[%clk 0:00:36]} 29. Bh3 {[%clk 0:00:17]}  Ra2 {[%clk 0:00:35]} 30. exd4 {[%clk 0:00:14]}  Nxd4 {[%clk 0:00:35]} 31. Bxd7 {[%clk 0:00:14]}  Kxd7 {[%clk 0:00:35]} 32. Be3 {[%clk 0:00:14]}  Nc2 {[%clk 0:00:30]} 33. Bf2 {[%clk 0:00:13]}  Ra4 {[%clk 0:00:29]} 34. b5 {[%clk 0:00:11]}  Ba7 {[%clk 0:00:27]} 35. bxc6+ {[%clk 0:00:11]}  Kxc6 {[%clk 0:00:28]} 36. Ng6 {[%clk 0:00:11]}  e4 {[%clk 0:00:18]} 37. dxe4 {[%clk 0:00:11]}  Rxe4 {[%clk 0:00:18]} 38. Rc1 {[%clk 0:00:10]}  Nd4 {[%clk 0:00:18]} 39. Bxd4 {[%clk 0:00:10]}  Rxd4 {[%clk 0:00:19]} 40. Nf4 {[%clk 0:00:07]}  Bxc5 {[%clk 0:00:18]} 41. Ne6 {[%clk 0:00:07]}  Rd1+ {[%clk 0:00:16]} 0-1


[Site "https://www.chess.com"]

[Event "Titled Tuesday Blitz April 18 Early 2023"]
[White "Seder, Mohammed"]
[Black "Malek, Jan"]
[WhiteFideId "11505567"]
[BlackFideId "21864080"]
[WhiteElo "1862"]
[BlackElo "2255"]
[Result "0-1"]
[Round "01"]
[TimeControl "180+2"]
[Date "2023.04.18"]
[WhiteClock "0:00:26"]
[BlackClock "0:01:30"]

1. e4 {[%clk 0:02:48]}  c5 {[%clk 0:02:56]} 2. Nf3 {[%clk 0:02:45]}  Nc6 {[%clk 0:02:55]} 3. Bb5 {[%clk 0:02:44]}  a6 {[%clk 0:02:49]} 4. Bxc6 {[%clk 0:02:41]}  bxc6 {[%clk 0:02:48]} 5. d3 {[%clk 0:02:31]}  Qc7 {[%clk 0:02:48]} 6. e5 {[%clk 0:02:22]}  d6 {[%clk 0:02:47]} 7. Be3 {[%clk 0:02:16]}  Rb8 {[%clk 0:02:44]} 8. b3 {[%clk 0:02:00]}  Bg4 {[%clk 0:02:42]} 9. Nbd2 {[%clk 0:01:55]}  Nh6 {[%clk 0:02:18]} 10. Qe2 {[%clk 0:01:49]}  Nf5 {[%clk 0:02:18]} 11. exd6 {[%clk 0:01:44]}  Qxd6 {[%clk 0:02:14]} 12. Ne4 {[%clk 0:01:39]}  Qd5 {[%clk 0:02:11]} 13. Bxc5 {[%clk 0:01:32]}  e5 {[%clk 0:02:09]} 14. Bxf8 {[%clk 0:01:27]}  Kxf8 {[%clk 0:02:02]} 15. c3 {[%clk 0:01:08]}  Nh4 {[%clk 0:01:31]} 16. Qe3 {[%clk 0:00:26]}  Nxg2+ {[%clk 0:01:30]} 0-1


[Site "https://www.chess.com"]

[Event "Titled Tuesday Blitz April 18 Early 2023"]
[White "Avramidou, Anastasia"]
[Black "Gheorghiu, Calin"]
[WhiteFideId "4239873"]
[BlackFideId "1200305"]
[WhiteElo "2160"]
[BlackElo "2223"]
[Result "1-0"]
[Round "01"]
[TimeControl "180+2"]
[Date "2023.04.18"]
[WhiteClock "0:00:45"]
[BlackClock "0:00:02"]

1. Nf3 {[%clk 0:02:52]}  d5 {[%clk 0:02:59]} 2. g3 {[%clk 0:02:52]}  Nf6 {[%clk 0:03:00]} 3. Bg2 {[%clk 0:02:53]}  c5 {[%clk 0:03:00]} 4. O-O {[%clk 0:02:54]}  Nc6 {[%clk 0:02:59]} 5. d4 {[%clk 0:02:54]}  cxd4 {[%clk 0:02:38]} 6. Nxd4 {[%clk 0:02:55]}  e5 {[%clk 0:02:35]} 7. Nxc6 {[%clk 0:02:55]}  bxc6 {[%clk 0:02:35]} 8. c4 {[%clk 0:02:56]}  Be6 {[%clk 0:02:34]} 9. Qa4 {[%clk 0:02:54]}  Qd7 {[%clk 0:02:31]} 10. Bg5 {[%clk 0:02:53]}  Rb8 {[%clk 0:02:13]} 11. Nc3 {[%clk 0:02:46]}  Rb4 {[%clk 0:02:01]} 12. Qa6 {[%clk 0:02:34]}  Rxc4 {[%clk 0:02:01]} 13. a3 {[%clk 0:02:27]}  Be7 {[%clk 0:01:54]} 14. Rac1 {[%clk 0:02:20]}  O-O {[%clk 0:01:46]} 15. b3 {[%clk 0:02:19]}  Rc5 {[%clk 0:01:39]} 16. Bxf6 {[%clk 0:01:50]}  gxf6 {[%clk 0:01:26]} 17. e3 {[%clk 0:01:50]}  Rb8 {[%clk 0:01:18]} 18. b4 {[%clk 0:01:36]}  Rc4 {[%clk 0:01:14]} 19. Na4 {[%clk 0:01:27]}  Rxc1 {[%clk 0:00:49]} 20. Rxc1 {[%clk 0:01:28]}  Rc8 {[%clk 0:00:48]} 21. Nc5 {[%clk 0:01:22]}  Bxc5 {[%clk 0:00:45]} 22. Rxc5 {[%clk 0:01:23]}  Kg7 {[%clk 0:00:30]} 23. h4 {[%clk 0:01:20]}  f5 {[%clk 0:00:29]} 24. Qd3 {[%clk 0:01:15]}  f4 {[%clk 0:00:24]} 25. exf4 {[%clk 0:01:15]}  exf4 {[%clk 0:00:22]} 26. Qd4+ {[%clk 0:01:14]}  Kg8 {[%clk 0:00:21]} 27. Qxf4 {[%clk 0:01:15]}  Qe7 {[%clk 0:00:21]} 28. Qe5 {[%clk 0:01:03]}  Qd7 {[%clk 0:00:17]} 29. Qd4 {[%clk 0:01:00]}  Bg4 {[%clk 0:00:12]} 30. b5 {[%clk 0:00:57]}  cxb5 {[%clk 0:00:11]} 31. Rxd5 {[%clk 0:00:57]}  Qe6 {[%clk 0:00:10]} 32. Rg5+ {[%clk 0:00:55]}  Kf8 {[%clk 0:00:09]} 33. Qxg4 {[%clk 0:00:46]}  Rc1+ {[%clk 0:00:08]} 34. Kh2 {[%clk 0:00:47]}  Qe1 {[%clk 0:00:08]} 35. Qb4+ {[%clk 0:00:42]}  Ke8 {[%clk 0:00:07]} 36. Qxe1+ {[%clk 0:00:42]}  Rxe1 {[%clk 0:00:07]} 37. Rxb5 {[%clk 0:00:43]}  Re2 {[%clk 0:00:05]} 38. f4 {[%clk 0:00:43]}  Re3 {[%clk 0:00:03]} 39. Re5+ {[%clk 0:00:43]}  Rxe5 {[%clk 0:00:03]} 40. fxe5 {[%clk 0:00:44]}  Ke7 {[%clk 0:00:03]} 41. Be4 {[%clk 0:00:44]}  h6 {[%clk 0:00:02]} 42. Bf5 {[%clk 0:00:45]} 1-0


[Site "https://www.chess.com"]

[Event "Titled Tuesday Blitz April 18 Early 2023"]
[White "Tyagi, Kushan"]
[Black "Kozin, Yuri"]
[WhiteFideId "2040069"]
[BlackFideId "4129920"]
[WhiteElo "2294"]
[BlackElo "2609"]
[Result "0-1"]
[Round "01"]
[TimeControl "180+2"]
[Date "2023.04.18"]
[WhiteClock "0:00:03"]
[BlackClock "0:00:07"]

1. d4 {[%clk 0:03:00]}  d5 {[%clk 0:02:59]} 2. c4 {[%clk 0:03:00]}  c6 {[%clk 0:02:59]} 3. Nf3 {[%clk 0:02:59]}  Nf6 {[%clk 0:03:00]} 4. Qb3 {[%clk 0:02:58]}  e6 {[%clk 0:02:54]} 5. Nc3 {[%clk 0:02:57]}  Nbd7 {[%clk 0:02:54]} 6. g3 {[%clk 0:02:56]}  Be7 {[%clk 0:02:51]} 7. Bg2 {[%clk 0:02:56]}  O-O {[%clk 0:02:51]} 8. O-O {[%clk 0:02:56]}  b6 {[%clk 0:02:47]} 9. Rd1 {[%clk 0:02:55]}  Ba6 {[%clk 0:02:42]} 10. cxd5 {[%clk 0:02:49]}  cxd5 {[%clk 0:02:40]} 11. Ne5 {[%clk 0:02:49]}  Nxe5 {[%clk 0:02:30]} 12. dxe5 {[%clk 0:02:48]}  Ng4 {[%clk 0:02:27]} 13. e4 {[%clk 0:02:36]}  Bc5 {[%clk 0:02:21]} 14. Rd2 {[%clk 0:02:28]}  d4 {[%clk 0:02:14]} 15. Na4 {[%clk 0:02:20]}  Nxe5 {[%clk 0:02:10]} 16. Nxc5 {[%clk 0:02:15]}  bxc5 {[%clk 0:02:11]} 17. f4 {[%clk 0:02:11]}  Ng4 {[%clk 0:02:01]} 18. Qa4 {[%clk 0:02:01]}  Qb6 {[%clk 0:01:57]} 19. b3 {[%clk 0:02:00]}  Ne3 {[%clk 0:01:55]} 20. Bf3 {[%clk 0:01:59]}  c4 {[%clk 0:01:43]} 21. Ba3 {[%clk 0:01:41]}  Rfd8 {[%clk 0:01:39]} 22. bxc4 {[%clk 0:01:39]}  Nxc4 {[%clk 0:01:37]} 23. Rdd1 {[%clk 0:01:35]}  d3+ {[%clk 0:01:34]} 24. Kh1 {[%clk 0:01:33]}  Bb5 {[%clk 0:01:15]} 25. Qb4 {[%clk 0:01:26]}  Nxa3 {[%clk 0:01:15]} 26. Qxa3 {[%clk 0:01:27]}  Qe3 {[%clk 0:01:14]} 27. Bg2 {[%clk 0:01:24]}  Bc6 {[%clk 0:01:10]} 28. Re1 {[%clk 0:01:22]}  Qf2 {[%clk 0:01:10]} 29. Rad1 {[%clk 0:01:20]}  d2 {[%clk 0:01:01]} 30. Rf1 {[%clk 0:01:17]}  Qe2 {[%clk 0:01:01]} 31. Qf3 {[%clk 0:01:07]}  Bb5 {[%clk 0:01:00]} 32. Rf2 {[%clk 0:01:03]}  Qc4 {[%clk 0:00:45]} 33. Rfxd2 {[%clk 0:00:58]}  Rxd2 {[%clk 0:00:42]} 34. Rxd2 {[%clk 0:00:59]}  g6 {[%clk 0:00:38]} 35. Qb3 {[%clk 0:00:54]}  Qc1+ {[%clk 0:00:36]} 36. Rd1 {[%clk 0:00:54]}  Qc5 {[%clk 0:00:35]} 37. h3 {[%clk 0:00:51]}  Rc8 {[%clk 0:00:34]} 38. Kh2 {[%clk 0:00:38]}  a6 {[%clk 0:00:34]} 39. Qb2 {[%clk 0:00:30]}  Qb6 {[%clk 0:00:27]} 40. Rc1 {[%clk 0:00:28]}  Rxc1 {[%clk 0:00:26]} 41. Qxc1 {[%clk 0:00:29]}  Qf2 {[%clk 0:00:23]} 42. a3 {[%clk 0:00:19]}  h5 {[%clk 0:00:22]} 43. Qg1 {[%clk 0:00:18]}  Qb2 {[%clk 0:00:21]} 44. Qe3 {[%clk 0:00:16]}  Bf1 {[%clk 0:00:20]} 45. Qf3 {[%clk 0:00:12]}  Bxg2 {[%clk 0:00:19]} 46. Qxg2 {[%clk 0:00:13]}  Qxa3 {[%clk 0:00:20]} 47. Qc2 {[%clk 0:00:13]}  a5 {[%clk 0:00:16]} 48. Qc8+ {[%clk 0:00:13]}  Kg7 {[%clk 0:00:15]} 49. Qc2 {[%clk 0:00:13]}  Qb4 {[%clk 0:00:15]} 50. g4 {[%clk 0:00:12]}  hxg4 {[%clk 0:00:12]} 51. hxg4 {[%clk 0:00:13]}  a4 {[%clk 0:00:13]} 52. Qc7 {[%clk 0:00:10]}  a3 {[%clk 0:00:10]} 53. Qe5+ {[%clk 0:00:10]}  Kh7 {[%clk 0:00:10]} 54. Qc7 {[%clk 0:00:09]}  Qb2+ {[%clk 0:00:10]} 55. Kg3 {[%clk 0:00:08]}  Kg7 {[%clk 0:00:08]} 56. e5 {[%clk 0:00:05]}  a2 {[%clk 0:00:08]} 57. Qe7 {[%clk 0:00:05]}  Qc3+ {[%clk 0:00:06]} 58. Kg2 {[%clk 0:00:05]}  Qd2+ {[%clk 0:00:07]} 59. Kf3 {[%clk 0:00:04]}  a1=Q {[%clk 0:00:07]} 60. Qf6+ {[%clk 0:00:03]}  Kg8 {[%clk 0:00:07]} 0-1


[Site "https://www.chess.com"]